bitfinex-derivatives/quotes_BTCF0:USTF0_20210705
["timestamp","ask_amount","ask_price","bid_price","bid_amount"]
[1625526947492,7.09747902,34018.0,34017.0,0.17424958]
[1625526947944,6.40254103,34018.0,34017.0,0.685659]
[1625526948043,6.46154103,34018.0,34017.0,0.685659]
[1625526948143,6.40254103,34018.0,34017.0,0.685659]
[1625526948544,7.79185177,34018.0,34017.0,0.685659]
[1625526948993,7.85085177,34018.0,34017.0,0.685659]
[1625526949694,6.46154103,34018.0,34017.0,0.685659]
[1625526950898,6.40254103,34018.0,34017.0,0.685659]
[1625526950996,6.46154103,34018.0,34017.0,0.685659]
[1625526951547,6.40254103,34018.0,34017.0,0.685659]
[1625526951648,1.91080103,34018.0,34017.0,0.685659]
[1625526951848,1.91080103,34018.0,34017.0,2.18224559]
[1625526952051,0.69477791,34018.0,34017.0,2.42282103]
[1625526952600,0.69477791,34018.0,34017.0,2.48182103]
[1625526952850,0.69477791,34018.0,34017.0,3.8488446]
[1625526957058,1.21545462,34021.0,34017.0,3.8488446]
[1625526957157,1.21545462,34021.0,34017.0,3.9078446]
[1625526957466,1.21545462,34021.0,34018.0,0.01412356]
[1625526957560,0.26083066,34019.0,34018.0,1.60964921]
[1625526957659,0.26083066,34019.0,34018.0,1.6580083]
[1625526957760,0.26083066,34019.0,34018.0,1.65452565]
[1625526957859,0.26083066,34019.0,34018.0,1.66516463]
[1625526957961,0.08699516,34020.0,34018.0,4.22480931]
[1625526958060,0.08699516,34020.0,34019.0,0.48115088]
[1625526958161,0.26082591,34020.0,34019.0,1.90551771]
[1625526958261,0.26082591,34020.0,34019.0,5.72275906]
[1625526959164,0.26082591,34020.0,34019.0,5.73339393]
[1625526959564,0.26080149,34021.0,34019.0,5.73339393]
[1625526959664,0.26080149,34021.0,34020.0,3.6542]
[1625526959764,0.26080149,34021.0,34020.0,3.7132]
[1625526959868,0.26080149,34021.0,34020.0,7.35477459]
[1625526959967,0.26080149,34021.0,34020.0,7.35825703]
[1625526960165,0.26080149,34021.0,34020.0,8.89361371]
[1625526960768,0.26080149,34021.0,34020.0,7.24025703]
[1625526960870,0.26080149,34021.0,34020.0,3.58605703]
[1625526961220,1.04210396,34022.0,34020.0,3.58605703]
[1625526961471,1.21585318,34022.0,34021.0,2.22039227]
[1625526961571,1.21585318,34022.0,34021.0,2.22387507]
[1625526961671,1.27285318,34022.0,34021.0,2.22387507]
[1625526961772,1.09918324,34022.0,34021.0,2.22387507]
[1625526962223,2.48871335,34022.0,34021.0,1.02827923]
[1625526963226,1.09918324,34022.0,34021.0,1.02827923]
[1625526963680,2.48877376,34022.0,34021.0,1.02827923]
[1625526966986,2.75224376,34022.0,34021.0,1.02827923]
[1625526967785,2.75224376,34022.0,34021.0,0.0034828]
[1625526968036,2.81124376,34022.0,34021.0,0.0034828]
[1625526968336,2.81124376,34022.0,34020.0,1.02730869]
[1625526968536,2.82709727,34022.0,34020.0,1.02730869]
[1625526968788,1.39023079,34021.0,34020.0,1.02730869]
[1625526968888,1.39023079,34021.0,34019.0,0.48115088]
[1625526968889,5.32940889,34021.0,34019.0,0.48115088]
[1625526969136,5.27040889,34021.0,34020.0,0.00348323]
[1625526969236,1.62098791,34021.0,34020.0,0.00348323]
[1625526969486,5.27044073,34021.0,34020.0,0.00348323]
[1625526969587,5.32944073,34021.0,34020.0,0.00348323]
[1625526970190,5.57001617,34021.0,34020.0,0.00348323]
[1625526971189,5.51101617,34021.0,34020.0,0.00348323]
[1625526971540,5.57001617,34021.0,34020.0,0.00348323]
[1625526972141,4.00602826,34021.0,34020.0,0.00348323]
[1625526972745,4.00602826,34021.0,34019.0,1.50951911]
[1625526972843,4.00602826,34021.0,34020.0,0.00348319]
[1625526973595,4.06502826,34021.0,34020.0,0.00348319]
[1625526973698,5.62899421,34021.0,34020.0,0.17497375]
[1625526973898,5.62899421,34021.0,34020.0,0.17149056]
[1625526973998,5.62899421,34021.0,34020.0,0.25723618]
[1625526974100,5.64484829,34021.0,34020.0,0.25723618]
[1625526974198,5.91874829,34021.0,34020.0,0.25723618]
[1625526974399,5.84389421,34021.0,34020.0,0.25723618]
[1625526974851,5.84389421,34021.0,34020.0,0.17149056]
[1625526975002,5.90289421,34021.0,34020.0,0.17149056]
[1625526975152,5.85974847,34021.0,34020.0,0.17149056]
[1625526975254,5.91874847,34021.0,34020.0,0.17149056]
[1625526975504,5.85974847,34021.0,34020.0,0.08578813]
[1625526975604,5.91874847,34021.0,34020.0,0.08578813]
[1625526976306,5.85974847,34021.0,34020.0,0.08578813]
[1625526976456,4.81702284,34021.0,34020.0,0.08578813]
[1625526977060,5.85964939,34021.0,34019.0,0.25732962]
[1625526977158,5.91864939,34021.0,34019.0,0.25732962]
[1625526977408,0.01585674,34020.0,34019.0,0.25732962]
[1625526977510,0.01585674,34020.0,34016.0,1.02935832]
[1625526977511,4.47840352,34020.0,34016.0,1.02935832]
[1625526977609,4.47840352,34020.0,34013.0,0.1718132]
[1625526977610,0.057,34019.0,34013.0,0.1718132]
[1625526977708,0.175,34019.0,34013.0,0.1718132]
[1625526978009,0.01585733,34018.0,34013.0,0.1718132]
[1625526978113,0.01585733,34018.0,34010.0,0.9022]
[1625526978114,5.21372964,34014.0,34010.0,0.9022]
[1625526978209,0.057,34013.0,34010.0,0.9022]
[1625526978311,0.48115088,34011.0,34010.0,0.9022]
[1625526978410,0.59715088,34011.0,34010.0,0.9022]
[1625526978513,4.30378609,34011.0,34010.0,0.9022]
[1625526978709,4.30378609,34011.0,34010.0,0.90568428]
[1625526979262,4.30378609,34011.0,34010.0,0.9022]
[1625526979764,5.86696746,34011.0,34010.0,0.9022]
[1625526980368,4.30378609,34011.0,34010.0,0.9022]
[1625526983225,4.1391,34008.0,34005.0,1.03347926]
[1625526983323,0.057,34007.0,34005.0,1.03347926]
[1625526983423,0.34209,34007.0,34005.0,1.03347926]
[1625526983625,1.04104308,34006.0,34005.0,1.03347926]
[1625526983724,1.15704308,34006.0,34005.0,1.03347926]
[1625526984227,0.116,34006.0,34005.0,1.03347926]
[1625526984327,0.35657544,34006.0,34005.0,1.03347926]
[1625526984829,1.39722271,34006.0,34005.0,1.03347926]
[1625526986583,1.39722271,34006.0,34004.0,1.03268282]
[1625526987937,1.39722271,34006.0,34003.0,1.0325299]
[1625526988036,1.39722271,34006.0,34003.0,1.0915299]
[1625526988140,1.33822271,34006.0,34003.0,1.0915299]
[1625526988440,1.28122271,34006.0,34003.0,1.0915299]
[1625526988642,0.24057544,34006.0,34004.0,1.03213463]
[1625526989294,0.29957544,34006.0,34004.0,1.03213463]
[1625526989692,0.29957544,34006.0,34005.0,1.03273681]
[1625526990094,0.29957544,34006.0,34005.0,1.12083681]
[1625526990195,0.29957544,34006.0,34004.0,1.03255712]
[1625526990295,0.057,34005.0,34004.0,1.03255712]
[1625526990394,0.116,34005.0,34004.0,1.03255712]
[1625526990845,0.116,34005.0,34003.0,1.03327958]
[1625526990945,0.116,34005.0,34003.0,1.09227958]
[1625526991196,3.6747,34004.0,34003.0,1.09227958]
[1625526991297,4.10731,34004.0,34003.0,1.09227958]
[1625526993203,4.04831,34004.0,34003.0,1.09227958]
[1625526993305,3.99131,34004.0,34003.0,1.09227958]
[1625526993503,4.05031,34004.0,34003.0,1.09227958]
[1625526994357,3.99131,34004.0,34003.0,1.09227958]
[1625526994457,4.05031,34004.0,34003.0,1.33285502]
[1625526995157,4.10731,34004.0,34003.0,1.33285502]
[1625526995257,4.05031,34004.0,34003.0,1.33285502]
[1625526995708,0.31661,34004.0,34003.0,1.33285502]
[1625526995909,0.31661,34004.0,34003.0,1.33633935]
[1625526996511,0.37561,34004.0,34003.0,1.33633935]
[1625526996710,0.37561,34004.0,34003.0,2.54125474]
[1625526997412,0.37561,34004.0,34003.0,1.33633935]
[1625527000015,0.43261,34004.0,34003.0,1.33633935]
[1625527000366,0.43261,34004.0,34003.0,0.30305977]
[1625527000970,0.43261,34004.0,34003.0,0.24405977]
[1625527004079,1.47163433,34004.0,34003.0,0.24405977]
[1625527005630,1.47163433,34004.0,34003.0,0.30305977]
[1625527007083,1.48749656,34004.0,34003.0,0.30305977]
[1625527010991,1.48749656,34004.0,34003.0,4.14595977]
[1625527011141,1.42849656,34004.0,34003.0,4.14595977]
[1625527011893,1.48749656,34004.0,34003.0,4.14595977]
[1625527011994,1.48749656,34004.0,34003.0,0.30305977]
[1625527016101,2.69885969,34004.0,34003.0,0.30305977]
[1625527017304,2.17977514,34004.0,34003.0,0.30305977]
[1625527017606,3.3915486,34004.0,34003.0,0.30305977]
[1625527018056,2.17977514,34004.0,34003.0,0.30305977]
[1625527018609,2.69919444,34004.0,34003.0,0.30305977]
[1625527019613,2.69919444,34004.0,34003.0,0.24405977]
[1625527019711,3.91160824,34004.0,34003.0,0.24405977]
[1625527020361,3.91160824,34004.0,34003.0,0.00348433]
[1625527020713,4.15218368,34004.0,34003.0,0.00348433]
[1625527024016,5.53878183,34004.0,34003.0,0.00348433]
[1625527033939,7.1023197,34004.0,34003.0,0.00348433]
[1625527035242,6.86174426,34004.0,34003.0,0.00348433]
[1625527035744,7.58347058,34004.0,34003.0,0.00348433]
[1625527045866,7.58347058,34004.0,34003.0,0.09298433]
[1625527046066,7.58347058,34004.0,34003.0,0.00348433]
[1625527046969,7.58347058,34004.0,34002.0,0.00348525]
[1625527047269,7.58347058,34004.0,34003.0,0.00348527]
[1625527047470,7.58347058,34004.0,34002.0,0.00348532]
[1625527047771,0.01587007,34003.0,34002.0,0.00348532]
[1625527047871,0.07487007,34003.0,34002.0,0.00348532]
[1625527048070,6.5094575,34003.0,34002.0,0.00348532]
[1625527048170,6.5664575,34003.0,34002.0,0.00348532]
[1625527048572,6.5664575,34003.0,34001.0,0.00348532]
[1625527048771,6.43397373,34002.0,34001.0,0.00348532]
[1625527048872,6.54997373,34002.0,34000.0,0.86661283]
[1625527049072,6.56584429,34002.0,34001.0,0.00348529]
[1625527049273,6.56584429,34002.0,34001.0,0.3501164]
[1625527049372,6.54997373,34002.0,34001.0,0.3501164]
[1625527049573,6.56584454,34002.0,34001.0,0.3501164]
[1625527049673,6.56584454,34002.0,34001.0,0.00348529]
[1625527051332,6.56584454,34002.0,34001.0,0.35027524]
[1625527051934,6.56584454,34002.0,34001.0,0.87050773]
[1625527052438,6.56584454,34002.0,34001.0,0.35027524]
[1625527054641,6.56584454,34002.0,34001.0,0.52337937]
[1625527055795,6.56584454,34002.0,34001.0,0.87000241]
[1625527056599,6.56584454,34002.0,34001.0,0.35010833]
[1625527057001,6.56584454,34002.0,34001.0,0.00348529]
[1625527057252,6.56584454,34002.0,34000.0,0.00348537]
[1625527057553,0.01587083,34001.0,34000.0,0.00348537]
[1625527057653,6.4514589,34001.0,34000.0,0.00348537]
[1625527057755,6.5674589,34001.0,34000.0,0.00348537]
[1625527063468,6.5674589,34001.0,34000.0,1.21757251]
[1625527063816,6.5674589,34001.0,34000.0,1.21408714]
[1625527064017,6.5674589,34001.0,34000.0,1.21757244]
[1625527064366,6.55158807,34001.0,34000.0,1.21757244]
[1625527064567,6.56745842,34001.0,34000.0,1.21757244]
[1625527064718,6.51045842,34001.0,34000.0,1.21757244]
[1625527068123,6.51045842,34001.0,34000.0,2.25959453]
[1625527069430,6.51045842,34001.0,34000.0,1.21757244]
[1625527070178,6.51045842,34001.0,34000.0,2.25978367]
[1625527070479,6.45145842,34001.0,34000.0,2.31878367]
[1625527070580,6.45145842,34001.0,34000.0,2.62562367]
[1625527070730,6.45145842,34001.0,34000.0,2.68462367]
[1625527070830,4.88612501,34001.0,34000.0,9.1129743]
[1625527071031,4.87025466,34001.0,34000.0,9.1129743]
[1625527071683,3.47882786,34001.0,34000.0,9.1129743]
[1625527071986,3.47882786,34001.0,34000.0,9.35354974]
[1625527073738,2.26130767,34001.0,34000.0,9.35354974]
[1625527073837,2.26130767,34001.0,34000.0,9.29454974]
[1625527074038,2.26130767,34001.0,34000.0,10.8543465]
[1625527074792,2.26130767,34001.0,34000.0,9.29454974]
[1625527076244,2.26130767,34001.0,34000.0,9.23554974]
[1625527076748,3.47864855,34001.0,34000.0,9.23554974]
[1625527078800,3.53764855,34001.0,34000.0,9.23554974]
[1625527079605,4.92890708,34001.0,34000.0,9.23554974]
[1625527079905,4.92890708,34001.0,34000.0,7.84741607]
[1625527080556,4.92890708,34001.0,34000.0,6.63279911]
[1625527083510,5.04490708,34001.0,34000.0,2.80719911]
[1625527083612,5.04490708,34001.0,34000.0,2.49687381]
[1625527083715,6.61023763,34001.0,34000.0,2.49687381]
[1625527083813,6.62610931,34001.0,34000.0,2.49687381]
[1625527084014,6.56710931,34001.0,34000.0,2.49687381]
[1625527084113,6.56710931,34001.0,34000.0,1.63039642]
[1625527084213,6.56710931,34001.0,34000.0,0.58818519]
[1625527084516,6.62610931,34001.0,34000.0,0.58818519]
[1625527084667,6.62610931,34001.0,34000.0,0.24057544]
[1625527087871,6.62610931,34001.0,33997.0,0.86945326]
[1625527088070,0.48115088,33998.0,33997.0,0.86945326]
[1625527088170,0.48115088,33998.0,33995.0,1.04339184]
[1625527088171,7.20468132,33998.0,33995.0,0.86929935]
[1625527088270,7.32268132,33998.0,33995.0,0.86929935]
[1625527088521,6.42956942,33996.0,33995.0,0.34771974]
[1625527088621,6.54556942,33996.0,33995.0,0.34771974]
[1625527090070,6.78614486,33996.0,33994.0,0.86929459]
[1625527090321,6.42603953,33995.0,33994.0,0.34772336]
[1625527090422,6.48303953,33995.0,33994.0,0.34772336]
[1625527090523,6.54203953,33995.0,33994.0,0.34772336]
[1625527091474,6.54203953,33995.0,33993.0,0.86906859]
[1625527091924,6.42534945,33994.0,33993.0,0.52144071]
[1625527092024,6.48434945,33994.0,33993.0,0.52144071]
[1625527092124,6.54134945,33994.0,33993.0,0.52144071]
[1625527092326,4.97850639,33994.0,33993.0,0.86899257]
[1625527094937,4.97850639,33994.0,33993.0,0.34755186]
[1625527095239,4.97850639,33994.0,33993.0,0.86875774]
[1625527096741,4.97850639,33994.0,33993.0,0.34755186]
[1625527097092,4.97850639,33994.0,33993.0,0.86866881]
[1625527098297,4.97850639,33994.0,33993.0,0.34755186]
[1625527100353,4.97850639,33994.0,33992.0,1.78601322]
[1625527100852,4.85793928,33993.0,33992.0,1.78601322]
[1625527100952,4.91693928,33993.0,33992.0,1.78601322]
[1625527101551,4.91693928,33993.0,33992.0,1.26493849]
[1625527102305,5.15751472,33993.0,33992.0,1.26493849]
[1625527105361,5.15751472,33993.0,33992.0,5.16853849]
[1625527105461,5.15751472,33993.0,33992.0,5.68941762]
[1625527106062,5.15751472,33993.0,33992.0,6.3084574]
[1625527106263,5.15751472,33993.0,33992.0,6.54903284]
[1625527107516,5.15751472,33993.0,33992.0,6.55251868]
[1625527109122,5.15751472,33993.0,33992.0,2.64891868]
[1625527109273,5.21651472,33993.0,33992.0,2.37702868]
[1625527109371,5.23239089,33993.0,33992.0,2.37702868]
[1625527109476,5.23239089,33993.0,33992.0,1.68254041]
[1625527109572,5.17339089,33993.0,33992.0,1.68254041]
[1625527112979,5.17339089,33993.0,33992.0,2.02971161]
[1625527115739,5.17339089,33993.0,33992.0,1.50883248]
[1625527118048,5.23039089,33993.0,33992.0,1.50883248]
[1625527120804,5.23039089,33993.0,33992.0,1.16166128]
[1625527121505,5.23039089,33993.0,33992.0,1.5087884]
[1625527122007,5.23039089,33993.0,33992.0,1.16166128]
[1625527123206,5.23039089,33993.0,33992.0,0.24406128]
[1625527123608,6.78851454,33993.0,33992.0,0.24406128]
[1625527124459,6.78851454,33993.0,33992.0,0.24057544]
[1625527126212,6.78851454,33993.0,33988.0,0.24057544]
[1625527126413,0.24057544,33989.0,33988.0,0.24057544]
[1625527126514,5.35853741,33989.0,33988.0,0.24057544]
[1625527126666,5.41753741,33989.0,33988.0,0.24057544]
[1625527126764,5.43341556,33989.0,33988.0,0.244062]
[1625527127665,5.43341556,33989.0,33988.0,0.00348656]
[1625527128367,5.43341556,33989.0,33987.0,0.0034866]
[1625527128471,5.673991,33989.0,33987.0,0.0034866]
[1625527128617,0.0158783,33988.0,33987.0,0.0034866]
[1625527128719,4.85619981,33988.0,33987.0,0.0034866]
[1625527128817,4.97219981,33988.0,33987.0,0.0034866]
[1625527130222,4.97219981,33988.0,33986.0,0.17697069]
[1625527130320,4.97219981,33988.0,33987.0,3.5889]
[1625527130470,4.95632151,33988.0,33987.0,3.5923866]
[1625527130571,4.95632151,33988.0,33987.0,0.0034866]
[1625527130670,5.01532151,33988.0,33987.0,0.0034866]
[1625527130771,5.03120016,33988.0,33985.0,0.52048871]
[1625527131071,4.83715194,33986.0,33984.0,0.5204367]
[1625527131170,0.057,33985.0,33984.0,0.5204367]
[1625527131270,0.116,33985.0,33984.0,0.5204367]
[1625527131421,3.57147561,33985.0,33984.0,0.5204367]
[1625527131520,3.57147561,33985.0,33984.0,0.52392341]
[1625527132321,3.57147561,33985.0,33983.0,1.69541029]
[1625527132322,3.57147561,33985.0,33983.0,1.1130337]
[1625527132422,3.63047561,33985.0,33983.0,1.1130337]
[1625527132525,3.63047561,33985.0,33982.0,1.04073406]
[1625527132526,0.48115088,33984.0,33982.0,0.52056134]
[1625527132623,0.057,33983.0,33982.0,0.52056134]
[1625527132823,0.116,33983.0,33982.0,0.52056134]
[1625527133022,0.13189284,33983.0,33982.0,0.52056134]
[1625527133121,0.13189284,33983.0,33971.0,0.2929]
[1625527133122,5.99233363,33983.0,33975.0,0.52063279]
[1625527133221,6.05133363,33983.0,33975.0,0.52063279]
[1625527133523,0.01589345,33982.0,33976.0,0.00348758]
[1625527133623,0.07489345,33982.0,33976.0,0.00348758]
[1625527133722,0.38777345,33982.0,33976.0,0.00348758]
[1625527133823,1.37906998,33977.0,33976.0,0.00348758]
[1625527133923,1.49506998,33977.0,33976.0,0.00348758]
[1625527134329,4.42529659,33977.0,33975.0,0.17354426]
[1625527134424,0.72172632,33976.0,33975.0,0.17354426]
[1625527134525,0.83772632,33976.0,33975.0,0.17354426]
[1625527134626,5.20363695,33976.0,33974.0,0.17350411]
[1625527134927,5.14463695,33976.0,33974.0,0.17350411]
[1625527135026,2.92891341,33975.0,33974.0,0.52050988]
[1625527135226,2.98791341,33975.0,33974.0,0.52050988]
[1625527135377,2.98791341,33975.0,33974.0,0.5239973]
[1625527135478,1.78193077,33975.0,33974.0,0.69747068]
[1625527135878,6.34123077,33975.0,33974.0,0.69747068]
[1625527136430,6.34123077,33975.0,33974.0,0.69398326]
[1625527136531,6.55387077,33975.0,33974.0,0.69398326]
[1625527136831,6.61087077,33975.0,33974.0,0.69398326]
[1625527137429,6.61087077,33975.0,33973.0,0.69394722]
[1625527137529,6.61087077,33975.0,33973.0,0.75294722]
[1625527137883,1.72331142,33974.0,33973.0,0.75294722]
[1625527138083,1.78231142,33974.0,33973.0,0.75294722]
[1625527138335,0.74835903,33974.0,33973.0,0.75294722]
[1625527138484,0.98893447,33974.0,33973.0,0.75294722]
[1625527138585,2.0225656,33974.0,33973.0,0.75294722]
[1625527138735,2.0795656,33974.0,33973.0,0.75294722]
[1625527140438,1.04593447,33974.0,33973.0,0.059]
[1625527140738,1.04593447,33974.0,33973.0,0.75261361]
[1625527141994,2.08152069,33974.0,33973.0,0.75261361]
[1625527142095,2.02452069,33974.0,33973.0,0.75261361]
[1625527142295,0.98893447,33974.0,33973.0,0.75261361]
[1625527143696,0.98893447,33974.0,33973.0,0.69361361]
[1625527143950,2.02338246,33974.0,33973.0,0.69361361]
[1625527144197,2.08238246,33974.0,33973.0,0.69361361]
[1625527144652,2.02338246,33974.0,33973.0,0.69361361]
[1625527144753,2.02338246,33974.0,33973.0,0.34680811]
[1625527145006,2.02338246,33974.0,33973.0,0.52021516]
[1625527145503,2.08238246,33974.0,33973.0,0.52021516]
[1625527145854,2.08238246,33974.0,33973.0,0.17340705]
[1625527146206,2.08238246,33974.0,33973.0,0.52022964]
[1625527146506,2.08238246,33974.0,33973.0,0.17340705]
[1625527146808,2.02338246,33974.0,33973.0,0.17340705]
[1625527146908,2.08238246,33974.0,33973.0,0.17340705]
[1625527147309,2.08238246,33974.0,33973.0,0.52011912]
[1625527147659,2.02338246,33974.0,33973.0,0.52011912]
[1625527148662,0.98893447,33974.0,33973.0,0.17340705]
[1625527148811,0.29957544,33974.0,33973.0,0.17340705]
[1625527149112,0.98678439,33974.0,33973.0,0.17340705]
[1625527149816,0.29957544,33974.0,33973.0,0.34659678]
[1625527150214,0.29957544,33974.0,33973.0,0.57309678]
[1625527150313,0.64347411,33974.0,33973.0,0.91968054]
[1625527150712,0.81547938,33974.0,33973.0,0.2265]
[1625527151313,0.81547938,33974.0,33973.0,0.2855]
[1625527151412,0.81547938,33974.0,33973.0,0.059]
[1625527151513,0.81547938,33974.0,33973.0,0.75206392]
[1625527152317,0.81547938,33974.0,33973.0,0.75555153]
[1625527152416,0.87447938,33974.0,33973.0,0.69655153]
[1625527152517,1.04595797,33974.0,33973.0,0.52329101]
[1625527152618,1.04595797,33974.0,33973.0,0.5198034]
[1625527152917,0.35857544,33974.0,33973.0,0.5198034]
[1625527153820,0.35857544,33974.0,33973.0,4.7160034]
[1625527155524,0.29957544,33974.0,33973.0,4.7160034]
[1625527155726,0.98693413,33974.0,33973.0,4.4284678]
[1625527155825,0.73762748,33976.0,33973.0,4.43195536]
[1625527155925,1.20274887,33977.0,33973.0,4.49095536]
[1625527156182,1.03176994,33979.0,33976.0,0.51962301]
[1625527156275,1.03176994,33979.0,33976.0,0.97498301]
[1625527156594,1.03176994,33979.0,33978.0,0.48115088]
[1625527156777,1.03176994,33979.0,33978.0,0.59915088]
[1625527157127,0.51652793,33979.0,33978.0,0.94905763]
[1625527157634,0.60273539,33979.0,33978.0,0.60263834]
[1625527157930,0.25844079,33979.0,33978.0,0.60263834]
[1625527160286,0.08620746,33979.0,33978.0,0.60263834]
[1625527160486,0.25861214,33979.0,33978.0,0.60263834]
[1625527160686,0.25861214,33979.0,33978.0,0.54363834]
[1625527161488,0.08620746,33979.0,33978.0,0.54363834]
[1625527161987,0.08620746,33979.0,33978.0,0.48463834]
[1625527162187,0.08620746,33979.0,33978.0,0.54363834]
[1625527162287,1.20524342,33984.0,33978.0,1.15007364]
[1625527162288,1.20533696,33982.0,33978.0,1.15007364]
[1625527162391,1.26433696,33982.0,33978.0,1.15007364]
[1625527162589,0.24057544,33981.0,33978.0,1.15007364]
[1625527162789,0.25647671,33981.0,33979.0,0.00348749]
[1625527162990,1.46131843,33981.0,33979.0,0.06248749]
[1625527163089,1.44541716,33981.0,33979.0,0.06248749]
[1625527163290,1.44541716,33981.0,33980.0,0.00348746]
[1625527163390,0.24057544,33981.0,33980.0,0.06248746]
[1625527163640,1.2055511,33982.0,33980.0,0.06248746]
[1625527163739,1.2645511,33982.0,33980.0,0.06248746]
[1625527164091,1.2645511,33982.0,33980.0,0.059]
[1625527164292,0.059,33982.0,33980.0,0.14563948]
[1625527164593,1.26694905,33982.0,33980.0,0.14563948]
[1625527165397,1.26694905,33982.0,33980.0,0.059]
[1625527165997,0.059,33982.0,33980.0,0.25994145]
[1625527166097,0.059,33982.0,33980.0,0.31894145]
[1625527166546,1.2672777,33982.0,33980.0,0.059]
[1625527166646,0.24057544,33981.0,33980.0,0.059]
[1625527166745,0.29957544,33981.0,33980.0,0.059]
[1625527166995,0.29957544,33981.0,33980.0,0.06248744]
[1625527167147,0.29957544,33981.0,33980.0,0.32248158]
[1625527167748,0.29957544,33981.0,33980.0,0.14915215]
[1625527168046,0.29957544,33981.0,33980.0,0.06248744]
[1625527168298,1.50861949,33981.0,33980.0,0.14917485]
[1625527169803,1.44961949,33981.0,33980.0,0.14917485]
[1625527169903,0.24057544,33981.0,33980.0,0.14917485]
[1625527170607,1.44912497,33981.0,33980.0,0.06248744]
[1625527172158,1.44912497,33981.0,33980.0,0.14921413]
[1625527172459,1.46503749,33981.0,33980.0,0.14921413]
[1625527173008,1.44912497,33981.0,33980.0,0.14921413]
[1625527173209,1.44912497,33981.0,33980.0,0.32268313]
[1625527174414,1.44912497,33981.0,33980.0,0.66969882]
[1625527174713,1.44912497,33981.0,33980.0,0.58297213]
[1625527175514,1.20854953,33981.0,33980.0,0.58297213]
[1625527176416,1.22446583,33981.0,33980.0,0.58297213]
[1625527176515,1.22446583,33981.0,33980.0,0.40950313]
[1625527178519,1.22446583,33981.0,33980.0,0.06248744]
[1625527178520,2.60951237,33981.0,33980.0,0.06248744]
[1625527179070,2.60951237,33981.0,33980.0,0.059]
[1625527179169,2.60951237,33981.0,33980.0,0.06248741]
[1625527179871,2.66851237,33981.0,33980.0,0.06248741]
[1625527186485,3.70747021,33981.0,33980.0,1.10543659]
[1625527187288,2.32242367,33981.0,33980.0,2.32243809]
[1625527190993,0.0749163,33981.0,33980.0,0.06248741]
[1625527191406,3.71050794,33981.0,33980.0,1.10605054]
[1625527191497,3.76750794,33981.0,33980.0,1.10605054]
[1625527191596,3.76750794,33981.0,33980.0,1.04705054]
[1625527192049,5.32447066,33981.0,33980.0,0.61227406]
[1625527192448,5.32447066,33981.0,33980.0,0.00348741]
[1625527192755,5.5650461,33981.0,33980.0,0.00348741]
[1625527192964,5.5650461,33981.0,33979.0,0.00348785]
[1625527193152,0.01590459,33980.0,33979.0,0.00348785]
[1625527193251,5.20277343,33980.0,33979.0,0.00348785]
[1625527193351,5.31877343,33980.0,33979.0,0.00348785]
[1625527194656,5.30286884,33980.0,33978.0,0.56813861]
[1625527194805,5.30286884,33980.0,33978.0,0.62713861]
[1625527194907,0.0159046,33979.0,33978.0,0.62713861]
[1625527195008,0.0749046,33979.0,33978.0,0.62713861]
[1625527195208,0.0749046,33979.0,33978.0,0.63062651]
[1625527195710,5.26392737,33979.0,33978.0,0.63062651]
[1625527195809,5.32092737,33979.0,33978.0,0.63062651]
[1625527196112,5.32092737,33979.0,33978.0,0.54363878]
[1625527196515,5.32092737,33979.0,33978.0,0.54015088]
[1625527197514,5.32092737,33979.0,33978.0,0.88804404]
[1625527197612,5.32092737,33979.0,33978.0,0.8915318]
[1625527197712,5.20492737,33979.0,33978.0,0.8915318]
[1625527198012,5.20492737,33979.0,33978.0,0.54363864]
[1625527198013,3.64825513,33979.0,33978.0,0.54363864]
[1625527198315,3.63235053,33979.0,33978.0,0.54363864]
[1625527198417,1.03783914,33979.0,33978.0,0.60263864]
[1625527198512,0.2000424,33980.0,33978.0,0.60263864]
[1625527198615,0.2000424,33980.0,33978.0,0.93175864]
[1625527198714,0.1117424,33980.0,33978.0,0.93175864]
[1625527198812,0.1015424,33980.0,33979.0,0.24057544]
[1625527198913,0.057,33990.0,33979.0,0.30306265]
[1625527199015,0.057,33990.0,33979.0,0.36206265]
[1625527199112,0.057,33990.0,33988.0,3.9359]
[1625527199213,0.057,33990.0,33988.0,4.30079]
[1625527199313,0.057,33990.0,33989.0,0.08695817]
[1625527199715,0.0728495,33990.0,33989.0,0.52173667]
[1625527200166,0.0728495,33990.0,33989.0,0.34782445]
[1625527200817,0.0158495,33990.0,33989.0,1.06955077]
[1625527201017,0.0158495,33990.0,33989.0,1.07303764]
[1625527201217,0.0158495,33990.0,33989.0,0.72521319]
[1625527201316,0.01586988,33993.0,33989.0,0.72521319]
[1625527201417,3.6539,33992.0,33989.0,0.78421319]
[1625527201520,0.01586984,33990.0,33989.0,1.13196663]
[1625527201620,0.01586984,33990.0,33989.0,0.83239119]
[1625527201718,0.01586984,33990.0,33989.0,0.89139119]
[1625527201819,0.01587034,33991.0,33989.0,1.14872114]
[1625527201917,0.01587034,33991.0,33989.0,1.08972114]
[1625527202018,0.07487034,33991.0,33989.0,1.08972114]
[1625527202121,0.01587052,33990.0,33989.0,1.08972114]
[1625527202320,0.01587052,33990.0,33989.0,0.48115088]
[1625527202774,0.48115088,33990.0,33989.0,0.48115088]
[1625527202872,0.53815088,33990.0,33989.0,0.48115088]
[1625527203273,0.5540219,33990.0,33989.0,0.48115088]
[1625527203723,0.5540219,33990.0,33989.0,0.54015088]
[1625527203875,0.5540219,33990.0,33989.0,0.48115088]
[1625527204323,0.5540219,33990.0,33989.0,0.54015088]
[1625527204827,0.5540219,33990.0,33989.0,0.48115088]
[1625527205524,0.5540219,33990.0,33989.0,0.54015088]
[1625527205925,0.5540219,33990.0,33989.0,0.48115088]
[1625527206832,2.28650126,33990.0,33989.0,0.48115088]
[1625527207332,2.28650126,33990.0,33989.0,0.54015088]
[1625527207532,0.5540219,33990.0,33989.0,0.54015088]
[1625527207883,0.6130219,33990.0,33989.0,0.54015088]
[1625527209086,0.6130219,33990.0,33989.0,0.48115088]
[1625527210041,2.34771925,33990.0,33989.0,0.48115088]
[1625527210138,2.34771925,33990.0,33985.0,0.60871815]
[1625527210439,0.01587238,33989.0,33985.0,0.60871815]
[1625527210539,0.32788238,33989.0,33982.0,0.60878413]
[1625527210640,0.057,33988.0,33982.0,0.60878413]
[1625527210739,0.116,33988.0,33982.0,0.60878413]
[1625527210842,0.175,33988.0,33984.0,0.24057544]
[1625527210943,0.01587329,33987.0,33984.0,0.24057544]
[1625527211042,0.07487329,33987.0,33984.0,0.24057544]
[1625527211145,4.0322,33985.0,33984.0,0.24057544]
[1625527211242,7.38046211,33985.0,33984.0,0.24057544]
[1625527211341,7.43946211,33985.0,33984.0,0.24057544]
[1625527211592,7.45533551,33985.0,33984.0,0.24057544]
[1625527212744,3.42313551,33985.0,33984.0,0.24057544]
[1625527212846,3.66371095,33985.0,33984.0,0.24057544]
[1625527213195,3.66371095,33985.0,33984.0,0.29957544]
[1625527213294,3.60471095,33985.0,33984.0,4.80437544]
[1625527213494,3.25965802,33985.0,33984.0,4.80437544]